{"text_format":"1","workbook":"xlsx","n_sheets":5,"sheets":["CO parcours","CO parcours (2)","CIBLE","DEBUT","APPEL"],"not_rendered":{"charts":0,"images":1,"macros":1,"external_links":0,"defined_names":8,"comments":0,"pivot_tables":0},"unopened":[],"bounds":{"document_bytes":16777216,"sheet_cells":100000,"rows_first":2000,"rows_last":500,"rows_between":2000,"halvings":0,"cell_chars":16384,"cell_head_chars":4096},"cells_cut":0,"cells_raw":0,"read":"whole","date_system":"1900"}

{"sheet":"CO parcours","index":0,"n_rows":41,"n_cols":85,"rows_kept":41,"cut":false,"hidden":false,"merged":[[0,10,1,10],[7,16,12,18],[8,10,11,10],[12,10,15,10],[16,10,19,10],[40,10,43,10],[20,10,23,10],[24,10,27,10],[28,10,31,10],[32,10,35,10],[36,10,39,10],[4,12,7,12],[8,12,11,12],[12,12,15,12],[16,12,19,12],[20,12,23,12],[28,2,31,2],[32,2,35,2],[36,2,39,2],[40,2,43,2],[20,8,23,8],[24,8,27,8],[28,8,31,8],[32,8,35,8],[36,8,39,8],[40,8,43,8],[20,2,23,2],[24,2,27,2],[32,6,35,6],[36,6,39,6],[24,1,27,1],[28,1,31,1],[32,1,35,1],[36,1,39,1],[40,1,43,1],[4,1,7,1],[8,1,11,1],[12,1,15,1],[16,1,19,1],[20,1,23,1],[20,14,23,14],[24,14,27,14],[28,14,31,14],[40,6,43,6],[44,6,47,6],[44,8,47,8],[24,12,27,12],[28,12,31,12],[32,12,35,12],[36,12,39,12],[40,12,43,12],[24,6,27,6],[32,14,35,14],[36,14,39,14],[40,14,43,14],[28,6,31,6],[4,6,7,6],[8,6,11,6],[12,6,15,6],[16,6,19,6],[20,6,23,6],[1,83,1,84],[4,2,7,2],[8,2,11,2],[12,2,15,2],[16,2,19,2],[4,8,7,8],[8,8,11,8],[12,8,15,8],[16,8,19,8],[4,14,7,14],[8,14,11,14],[4,15,7,15],[1,81,1,82],[12,14,15,14],[16,14,19,14],[4,10,7,10]]}
[null," ",null,null,null,null,null,null,null,null,"Temps limite (minutes)",null,null,null,"Ajouter d'autres boutons balises si besoin"]
[null,null,"Classe",null,null,null,null,null,null,null,null,null,null,null,null,null,null,null,null,null,null,null,null,null,null,null,null,null,null,null,null,null,null,null,null,null,null,null,null,null,null,null,null,null,null,null,null,null,null,null,null,null,null,"DEBUT",null,null,null,null,null,null,null,null,null,null,null,null,null,null,null,null,null,null,null,null,null,null,null,null,null,null,null,"TMCV",null,"TGA"]
[null,null,"STAGE",null,null,null,null,null,null,null,2,{"$f":"K3*60","v":120},null,null,null,null,null,null,null,null,null,null,null,null,null,null,null,null,null,null,null,null,null,null,null,null,null,null,null,null,null,null,null,null,null,null,null,null,null,null,null,null,null,null,null,null,null,null,null,null,null,null,null,null,null,null,null,null,null,null,null,null,null,null,null,null,null,null,null,null,"APPEL","classe 1","Colonne1","Classe 2","Colonne1"]
[null,null,null,null,null,null,"HEURE DEPART",null,"HEURE ARRIVEE",null,"Temps du parcours",null,"NOMBRE DE BALISES TROUVES",null,"Points (CIBLE)",null,null,null,null,null,null,null,null,null,null,null,null,null,null,null,null,null,null,null,null,null,null,null,null,null,null,null,null,null,null,null,null,null,null,null,null,null,null,null,null,null,null,null,null,null,null,null,null,null,null,null,null,null,null,null,null,null,null,null,null,null,null,null,null,null,null,"Laetitia","f","Bruno","g"]
[null,"Groupe 1","Parcours 3",null,"Hervé",null,null,null,null,null,{"$f":"IF(ISBLANK(I5),\"\",I5-G5)","v":""},{"$f":"ABS((HOUR(K5)*3600+MINUTE(K5)*60+SECOND(K5)))","v":{"$error":"#VALUE!"}},null,null,{"$f":"IF(ISBLANK(M5),\"\",INDEX(points,MATCH(M5,balises,1),MATCH(L5,Temps,1)))","v":""},null,null,null,null,null,null,null,null,null,null,null,null,null,null,null,null,null,null,null,null,null,null,null,null,null,null,null,null,null,null,null,null,null,null,null,null,null,null,null,null,null,null,null,null,null,null,null,null,null,null,null,null,null,null,null,null,null,null,null,null,null,null,null,null,null,null,"Mounir","g","Hervé","g"]
[null,null,null,null,"hélène",null,null,null,null,null,null,null,null,null,null,null,null,null,null,null,null,null,null,null,null,null,null,null,null,null,null,null,null,null,null,null,null,null,null,null,null,null,null,null,null,null,null,null,null,null,null,null,null,null,null,null,null,null,null,null,null,null,null,null,null,null,null,null,null,null,null,null,null,null,null,null,null,null,null,null,null,"Sabri","g","Robin","g"]
[null,null,null,null,"sabri",null,null,null,null,null,null,null,null,null,null,null,null,null,null,null,null,null,null,null,null,null,null,null,null,null,null,null,null,null,null,null,null,null,null,null,null,null,null,null,null,null,null,null,null,null,null,null,null,null,null,null,null,null,null,null,null,null,null,null,null,null,null,null,null,null,null,null,null,null,null,null,null,null,null,null,null,null,null,"Sylvie","f"]
[null,null,null,null,null,null,null,null,null,null,null,null,null,null,null,null,"DUPLIQUER CETTE FEUILLE  AUTANT DE FOIS QUE DE PARCOURS POUR SAUVEGARDER"]
[null,"Groupe 2","Parcours 5",null,"marie",null,null,null,null,null,{"$f":"IF(ISBLANK(I9),\"\",I9-G9)","v":""},{"$f":"ABS((HOUR(K9)*3600+MINUTE(K9)*60+SECOND(K9)))","v":{"$error":"#VALUE!"}},null,null,{"$f":"IF(ISBLANK(M9),\"\",INDEX(points,MATCH(M9,balises,1),MATCH(L9,Temps,1)))","v":""}]
[null,null,null,null,"jean"]
[null,null,null,null,"mounir"]
[]
[null,"Groupe 3","Parcours 6",null,null,null,null,null,null,null,{"$f":"IF(ISBLANK(I13),\"\",I13-G13)","v":""},{"$f":"ABS((HOUR(K13)*3600+MINUTE(K13)*60+SECOND(K13)))","v":{"$error":"#VALUE!"}},null,null,{"$f":"IF(ISBLANK(M13),\"\",INDEX(points,MATCH(M13,balises,1),MATCH(L13,Temps,1)))","v":""}]
[]
[null,null,null,null,null,null,null,null,null,null,null,null,null,0]
[]
[null,"Groupe 4","Parcours 7",null,null,null,null,null,null,null,{"$f":"IF(ISBLANK(I17),\"\",I17-G17)","v":""},{"$f":"ABS((HOUR(K17)*3600+MINUTE(K17)*60+SECOND(K17)))","v":{"$error":"#VALUE!"}},null,null,{"$f":"IF(ISBLANK(M17),\"\",INDEX(points,MATCH(M17,balises,1),MATCH(L17,Temps,1)))","v":""}]
[]
[]
[]
[null,"Groupe 5","Parcours 8",null,null,null,null,null,null,null,{"$f":"IF(ISBLANK(I21),\"\",I21-G21)","v":""},{"$f":"ABS((HOUR(K21)*3600+MINUTE(K21)*60+SECOND(K21)))","v":{"$error":"#VALUE!"}},null,null,{"$f":"IF(ISBLANK(M21),\"\",INDEX(points,MATCH(M21,balises,1),MATCH(L21,Temps,1)))","v":""}]
[]
[]
[]
[null,"Groupe 6","Parcours 9",null,null,null,null,null,null,null,{"$f":"IF(ISBLANK(I25),\"\",I25-G25)","v":""},{"$error":"#VALUE!"},null,null,{"$f":"IF(ISBLANK(M25),\"\",INDEX(points,MATCH(M25,balises,1),MATCH(L25,Temps,1)))","v":""}]
[]
[]
[]
[null,"Groupe 7","Parcours 10",null,null,null,null,null,null,null,{"$f":"IF(ISBLANK(I29),\"\",I29-G29)","v":""},{"$f":"ABS((HOUR(K29)*3600+MINUTE(K29)*60+SECOND(K29)))","v":{"$error":"#VALUE!"}},null,null,{"$f":"IF(ISBLANK(M29),\"\",INDEX(points,MATCH(M29,balises,1),MATCH(L29,Temps,1)))","v":""}]
[]
[]
[]
[null,"Groupe 8","Parcours 11",null,null,null,null,null,null,null,{"$f":"IF(ISBLANK(I33),\"\",I33-G33)","v":""},{"$error":"#VALUE!"},null,null,{"$f":"IF(ISBLANK(M33),\"\",INDEX(points,MATCH(M33,balises,1),MATCH(L33,Temps,1)))","v":""}]
[]
[]
[]
[null,"Groupe 9","Parcours 12",null,null,null,null,null,null,null,{"$f":"IF(ISBLANK(I37),\"\",I37-G37)","v":""},{"$f":"ABS((HOUR(K37)*3600+MINUTE(K37)*60+SECOND(K37)))","v":{"$error":"#VALUE!"}},null,null,{"$f":"IF(ISBLANK(M37),\"\",INDEX(points,MATCH(M37,balises,1),MATCH(L37,Temps,1)))","v":""}]
[]
[]
[]
[null,"Groupe 10","Parcours 13",null,null,null,null,null,null,null,{"$f":"IF(ISBLANK(I41),\"\",I41-G41)","v":""},{"$error":"#VALUE!"},null,null,{"$f":"IF(ISBLANK(M41),\"\",INDEX(points,MATCH(M41,balises,1),MATCH(L41,Temps,1)))","v":""}]

{"sheet":"CO parcours (2)","index":1,"n_rows":41,"n_cols":85,"rows_kept":41,"cut":false,"hidden":false,"merged":[[44,6,47,6],[44,8,47,8],[36,14,39,14],[40,1,43,1],[40,2,43,2],[40,6,43,6],[40,8,43,8],[40,10,43,10],[40,12,43,12],[40,14,43,14],[36,1,39,1],[36,2,39,2],[36,6,39,6],[36,8,39,8],[36,10,39,10],[36,12,39,12],[28,14,31,14],[32,1,35,1],[32,2,35,2],[32,6,35,6],[32,8,35,8],[32,10,35,10],[32,12,35,12],[32,14,35,14],[28,1,31,1],[28,2,31,2],[28,6,31,6],[28,8,31,8],[28,10,31,10],[28,12,31,12],[20,14,23,14],[24,1,27,1],[24,2,27,2],[24,6,27,6],[24,8,27,8],[24,10,27,10],[24,12,27,12],[24,14,27,14],[20,1,23,1],[20,2,23,2],[20,6,23,6],[20,8,23,8],[20,10,23,10],[20,12,23,12],[12,14,15,14],[16,1,19,1],[16,2,19,2],[16,6,19,6],[16,8,19,8],[16,10,19,10],[16,12,19,12],[16,14,19,14],[12,1,15,1],[12,2,15,2],[12,6,15,6],[12,8,15,8],[12,10,15,10],[12,12,15,12],[4,15,7,15],[8,1,11,1],[8,2,11,2],[8,6,11,6],[8,8,11,8],[8,10,11,10],[8,12,11,12],[8,14,11,14],[0,10,1,10],[1,81,1,82],[1,83,1,84],[4,1,7,1],[4,2,7,2],[4,6,7,6],[4,8,7,8],[4,10,7,10],[4,12,7,12],[4,14,7,14]]}
[null," ",null,null,null,null,null,null,null,null,"Temps limite (minutes)",null,null,null,"Ajouter d'autres boutons balises si besoin"]
[null,null,"Classe",null,null,null,null,null,null,null,null,null,null,null,null,null,null,null,null,null,null,null,null,null,null,null,null,null,null,null,null,null,null,null,null,null,null,null,null,null,null,null,null,null,null,null,null,null,null,null,null,null,null,"DEBUT",null,null,null,null,null,null,null,null,null,null,null,null,null,null,null,null,null,null,null,null,null,null,null,null,null,null,null,"TMCV",null,"TGA"]
[null,null,"STAGE",null,null,null,null,null,null,null,2,{"$f":"K3*60","v":120},null,null,null,null,null,null,null,null,null,null,null,null,null,null,null,null,null,null,null,null,null,null,null,null,null,null,null,null,null,null,null,null,null,null,null,null,null,null,null,null,null,null,null,null,null,null,null,null,null,null,null,null,null,null,null,null,null,null,null,null,null,null,null,null,null,null,null,null,"APPEL","classe 1","Colonne1","Classe 2","Colonne1"]
[null,null,null,null,null,null,"HEURE DEPART",null,"HEURE ARRIVEE",null,"Temps du parcours",null,"NOMBRE DE BALISES TROUVES",null,"Points (CIBLE)",null,null,null,null,null,null,null,null,null,null,null,null,null,null,null,null,null,null,null,null,null,null,null,null,null,null,null,null,null,null,null,null,null,null,null,null,null,null,null,null,null,null,null,null,null,null,null,null,null,null,null,null,null,null,null,null,null,null,null,null,null,null,null,null,null,null,"Laetitia","f","Bruno","g"]
[null,"Groupe 1","Parcours 1",null,null,null,null,null,null,null,{"$f":"IF(ISBLANK(I5),\"\",I5-G5)","v":""},{"$f":"ABS((HOUR(K5)*3600+MINUTE(K5)*60+SECOND(K5)))","v":{"$error":"#VALUE!"}},null,null,{"$f":"IF(ISBLANK(M5),\"\",INDEX(points,MATCH(M5,balises,1),MATCH(L5,Temps,1)))","v":""},null,null,null,null,null,null,null,null,null,null,null,null,null,null,null,null,null,null,null,null,null,null,null,null,null,null,null,null,null,null,null,null,null,null,null,null,null,null,null,null,null,null,null,null,null,null,null,null,null,null,null,null,null,null,null,null,null,null,null,null,null,null,null,null,null,null,"Mounir","g","Hervé","g"]
[null,null,null,null,null,null,null,null,null,null,null,null,null,null,null,null,null,null,null,null,null,null,null,null,null,null,null,null,null,null,null,null,null,null,null,null,null,null,null,null,null,null,null,null,null,null,null,null,null,null,null,null,null,null,null,null,null,null,null,null,null,null,null,null,null,null,null,null,null,null,null,null,null,null,null,null,null,null,null,null,null,"Sabri","g","Robin","g"]
[null,null,null,null,null,null,null,null,null,null,null,null,null,null,null,null,null,null,null,null,null,null,null,null,null,null,null,null,null,null,null,null,null,null,null,null,null,null,null,null,null,null,null,null,null,null,null,null,null,null,null,null,null,null,null,null,null,null,null,null,null,null,null,null,null,null,null,null,null,null,null,null,null,null,null,null,null,null,null,null,null,null,null,"Sylvie","f"]
[]
[null,"Groupe 2",null,null,null,null,null,null,null,null,{"$f":"IF(ISBLANK(I9),\"\",I9-G9)","v":""},{"$f":"ABS((HOUR(K9)*3600+MINUTE(K9)*60+SECOND(K9)))","v":{"$error":"#VALUE!"}},null,null,{"$f":"IF(ISBLANK(M9),\"\",INDEX(points,MATCH(M9,balises,1),MATCH(L9,Temps,1)))","v":""}]
[]
[]
[]
[null,"Groupe 3",null,null,null,null,null,null,null,null,{"$f":"IF(ISBLANK(I13),\"\",I13-G13)","v":""},{"$f":"ABS((HOUR(K13)*3600+MINUTE(K13)*60+SECOND(K13)))","v":{"$error":"#VALUE!"}},null,null,{"$f":"IF(ISBLANK(M13),\"\",INDEX(points,MATCH(M13,balises,1),MATCH(L13,Temps,1)))","v":""}]
[]
[null,null,null,null,null,null,null,null,null,null,null,null,null,0]
[]
[null,"Groupe 4",null,null,null,null,null,null,null,null,{"$f":"IF(ISBLANK(I17),\"\",I17-G17)","v":""},{"$f":"ABS((HOUR(K17)*3600+MINUTE(K17)*60+SECOND(K17)))","v":{"$error":"#VALUE!"}},null,null,{"$f":"IF(ISBLANK(M17),\"\",INDEX(points,MATCH(M17,balises,1),MATCH(L17,Temps,1)))","v":""}]
[]
[]
[]
[null,"Groupe 5",null,null,null,null,null,null,null,null,{"$f":"IF(ISBLANK(I21),\"\",I21-G21)","v":""},{"$f":"ABS((HOUR(K21)*3600+MINUTE(K21)*60+SECOND(K21)))","v":{"$error":"#VALUE!"}},null,null,{"$f":"IF(ISBLANK(M21),\"\",INDEX(points,MATCH(M21,balises,1),MATCH(L21,Temps,1)))","v":""}]
[]
[]
[]
[null,"Groupe 6",null,null,null,null,null,null,null,null,{"$f":"IF(ISBLANK(I25),\"\",I25-G25)","v":""},{"$error":"#VALUE!"},null,null,{"$f":"IF(ISBLANK(M25),\"\",INDEX(points,MATCH(M25,balises,1),MATCH(L25,Temps,1)))","v":""}]
[]
[]
[]
[null,"Groupe 7",null,null,null,null,null,null,null,null,{"$f":"IF(ISBLANK(I29),\"\",I29-G29)","v":""},{"$f":"ABS((HOUR(K29)*3600+MINUTE(K29)*60+SECOND(K29)))","v":{"$error":"#VALUE!"}},null,null,{"$f":"IF(ISBLANK(M29),\"\",INDEX(points,MATCH(M29,balises,1),MATCH(L29,Temps,1)))","v":""}]
[]
[]
[]
[null,"Groupe 8",null,null,null,null,null,null,null,null,{"$f":"IF(ISBLANK(I33),\"\",I33-G33)","v":""},{"$error":"#VALUE!"},null,null,{"$f":"IF(ISBLANK(M33),\"\",INDEX(points,MATCH(M33,balises,1),MATCH(L33,Temps,1)))","v":""}]
[]
[]
[]
[null,"Groupe 9",null,null,null,null,null,null,null,null,{"$f":"IF(ISBLANK(I37),\"\",I37-G37)","v":""},{"$f":"ABS((HOUR(K37)*3600+MINUTE(K37)*60+SECOND(K37)))","v":{"$error":"#VALUE!"}},null,null,{"$f":"IF(ISBLANK(M37),\"\",INDEX(points,MATCH(M37,balises,1),MATCH(L37,Temps,1)))","v":""}]
[]
[]
[]
[null,"Groupe 10",null,null,null,null,null,null,null,null,{"$f":"IF(ISBLANK(I41),\"\",I41-G41)","v":""},{"$error":"#VALUE!"},null,null,{"$f":"IF(ISBLANK(M41),\"\",INDEX(points,MATCH(M41,balises,1),MATCH(L41,Temps,1)))","v":""}]

{"sheet":"CIBLE","index":2,"n_rows":25,"n_cols":20,"rows_kept":25,"cut":false,"hidden":false,"merged":[[1,0,2,0]]}
[]
[{"$f":"INDEX(points,MATCH(C11,balises,0),MATCH(C12,Temps,0))","v":{"$error":"#N/A"}},null,null,"BAREME A ADAPTER SELON VOS BESOINS"]
[null,null,"POINTS",0,3,6,9,12,15,18,21,24,27,30,35,40,45,50,60,"minutes"]
[null,null,"BALISES/TEMPS",{"$f":"D3*60","v":0},{"$f":"E3*60","v":180},360,540,720,900,1080,1260,1440,1620,1800,2100,2400,2700,3000,3600,"secondes"]
[null,null,0,5,5,5,5,5,5,5,5,5,5,5,5,5,5,0,0]
[null,null,1,5,5,5,5,5,5,5,5,5,5,5,5,5,5,0,0]
[null,null,2,5,5,5,5,5,5,5,5,5,5,5,5,5,5,0,0]
[null,null,3,10,10,10,10,10,10,10,10,10,10,10,5,5,5,5,5]
[null,null,4,10,10,10,10,10,10,10,10,10,10,10,5,5,5,5,5]
[null,null,5,10,10,10,10,10,10,10,10,10,10,10,5,5,5,5,5]
[null,null,6,15,15,15,15,15,15,10,10,10,10,10,5,5,5,5,5]
[null,null,7,15,15,15,15,15,15,10,10,10,10,10,5,5,5,5,5]
[null,null,8,15,15,15,15,15,15,10,10,10,10,10,5,5,5,5,5]
[null,null,9,15,15,15,15,15,15,10,10,10,10,10,5,5,5,5,5]
[null,null,10,20,20,20,15,15,15,10,10,10,10,10,5,5,5,5,5]
[null,null,11,20,20,20,15,15,15,10,10,10,10,10,5,5,5,5,5]
[null,null,12,20,20,20,15,15,15,10,10,10,10,10,5,5,5,5,5]
[null,null,13,20,20,20,15,15,15,10,10,10,10,10,5,5,5,5,5]
[null,null,14,20,20,20,15,15,15,10,10,10,10,10,5,5,5,5,5]
[null,null,15,20,20,20,15,15,15,10,10,10,10,10,5,5,5,5,5]
[null,null,16,20,20,20,15,15,15,10,10,10,10,10,5,5,5,5,5]
[null,null,17,20,20,20,15,15,15,10,10,10,10,10,5,5,5,5,5]
[null,null,18,20,20,20,15,15,15,10,10,10,10,10,5,5,5,5,5]
[null,null,19,20,20,20,15,15,15,10,10,10,10,10,5,5,5,5,5]
[null,null,20,20,20,20,15,15,15,10,10,10,10,10,5,5,5,5,5]

{"sheet":"DEBUT","index":3,"n_rows":64,"n_cols":8,"rows_kept":64,"cut":false,"hidden":false,"merged":[]}
[]
[null,"HORAIRES à compléter si usage tablette",null,"Nom des parcours",null,"Nombre de balises trouvés",null,"Temps limite en minutes"]
[]
[null,"11:00:00",null,"Parcours 1",null,0,null,0]
[null,"11:01:00",null,"Parcours 2",null,1,null,1]
[null,"11:02:00",null,"Parcours 3",null,2,null,2]
[null,"11:03:00",null,"Parcours 4",null,3,null,3]
[null,"11:04:00",null,"Parcours 5",null,4,null,4]
[null,"11:05:00",null,"Parcours 6",null,5,null,5]
[null,"11:06:00",null,"Parcours 7",null,6,null,6]
[null,"11:07:00",null,"Parcours 8",null,7,null,7]
[null,"11:08:00",null,"Parcours 9",null,null,null,8]
[null,"11:09:00",null,null,null,null,null,9]
[null,"11:10:00",null,null,null,null,null,10]
[null,null,null,null,null,null,null,11]
[null,null,null,null,null,null,null,12]
[null,null,null,null,null,null,null,13]
[null,null,null,null,null,null,null,14]
[null,null,null,null,null,null,null,15]
[null,null,null,null,null,null,null,16]
[null,null,null,null,null,null,null,17]
[null,null,null,null,null,null,null,18]
[null,null,null,null,null,null,null,19]
[null,null,null,null,null,"fin du barême",null,20]
[null,null,null,null,null,null,null,21]
[null,null,null,null,null,null,null,22]
[null,null,null,null,null,null,null,23]
[null,null,null,"Fin des parcours",null,null,null,24]
[null,null,null,null,null,null,null,25]
[null,null,null,null,null,null,null,26]
[null,null,null,null,null,null,null,27]
[null,null,null,null,null,null,null,28]
[null,null,null,null,null,null,null,29]
[null,null,null,null,null,null,null,30]
[null,null,null,null,null,null,null,31]
[null,null,null,null,null,null,null,32]
[null,null,null,null,null,null,null,33]
[null,null,null,null,null,null,null,34]
[null,null,null,null,null,null,null,35]
[null,null,null,null,null,null,null,36]
[null,null,null,null,null,null,null,37]
[null,null,null,null,null,null,null,38]
[null,null,null,null,null,null,null,39]
[null,null,null,null,null,null,null,40]
[null,null,null,null,null,null,null,41]
[null,null,null,null,null,null,null,42]
[null,null,null,null,null,null,null,43]
[null,null,null,null,null,null,null,44]
[null,null,null,null,null,null,null,45]
[null,null,null,null,null,null,null,46]
[null,null,null,null,null,null,null,47]
[null,null,null,null,null,null,null,48]
[null,null,null,null,null,null,null,49]
[null,null,null,null,null,null,null,50]
[null,null,null,null,null,null,null,51]
[null,null,null,null,null,null,null,52]
[null,null,null,null,null,null,null,53]
[null,null,null,null,null,null,null,54]
[null,null,null,null,null,null,null,55]
[null,null,null,null,null,null,null,56]
[null,null,null,null,null,null,null,57]
[null,null,null,null,null,null,null,58]
[null,null,null,null,null,null,null,59]
[null,null,null,null,null,null,null,60]

{"sheet":"APPEL","index":4,"n_rows":7,"n_cols":6,"rows_kept":7,"cut":false,"hidden":false,"merged":[]}
[]
[null,null,"TMCV",null,"STAGE"]
[null,null,"tmcv","sexe","stage","sexe"]
[null,null,"Laetitia","f","Bruno","g"]
[null,null,"Mounir","g","Hervé","g"]
[null,null,"Sabri","g","Robin","g"]
[null,null,"Paul",null,"Sylvie","f"]